[Event "Early-Titled-Tuesday-Blitz-January-16-2024"]
[Site "Chess.com"]
[Date "2024.01.16"]
[Round "2"]
[White "MatthewG-p4p"]
[Black "LangesNasenhaar"]
[Result "0-1"]
[WhiteElo "2911"]
[BlackElo "2434"]
[TimeControl "180+1"]
[EndTime "8:18:18 PST"]
[Termination "LangesNasenhaar won on time"]

1. e4 {[%clk 0:03:00.9]} 1... g6 {[%clk 0:02:54.8]} 2. d4 {[%clk 0:03:00.1]}
2... Bg7 {[%clk 0:02:54.9]} 3. Nc3 {[%clk 0:03:00.8]} 3... c6 {[%clk 0:02:54.9]}
4. Nf3 {[%clk 0:02:59.4]} 4... d5 {[%clk 0:02:54.7]} 5. e5 {[%clk 0:02:57.7]}
5... Bg4 {[%clk 0:02:50.4]} 6. h3 {[%clk 0:02:57.9]} 6... Bxf3 {[%clk
0:02:49.9]} 7. Qxf3 {[%clk 0:02:58.8]} 7... f6 {[%clk 0:02:49.2]} 8. Bf4 {[%clk
0:02:47.1]} 8... Nd7 {[%clk 0:02:41.9]} 9. exf6 {[%clk 0:02:08.8]} 9... Ngxf6
{[%clk 0:02:41.8]} 10. O-O-O {[%clk 0:02:09.3]} 10... O-O {[%clk 0:02:42.1]} 11.
g4 {[%clk 0:02:09.7]} 11... b5 {[%clk 0:02:14.7]} 12. Qe3 {[%clk 0:02:02.2]}
12... b4 {[%clk 0:02:04.9]} 13. Na4 {[%clk 0:01:40.4]} 13... Qa5 {[%clk
0:01:25]} 14. b3 {[%clk 0:01:33.3]} 14... Nb6 {[%clk 0:01:19.4]} 15. Bc7 {[%clk
0:01:24.6]} 15... Rac8 {[%clk 0:01:11.2]} 16. Qe6+ {[%clk 0:00:36.5]} 16... Kh8
{[%clk 0:01:08.8]} 17. Qxc6 {[%clk 0:00:36.7]} 17... Ne4 {[%clk 0:00:17.6]} 18.
Rh2 {[%clk 0:00:15.3]} 18... Bh6+ {[%clk 0:00:10.3]} 19. Kb2 {[%clk 0:00:11.3]}
19... Nxa4+ {[%clk 0:00:09.2]} 20. bxa4 {[%clk 0:00:05]} 20... Qxc7 {[%clk
0:00:08.8]} 21. Qxc7 {[%clk 0:00:04.7]} 21... Rxc7 {[%clk 0:00:09.7]} 22. Re1
{[%clk 0:00:04.1]} 22... Nxf2 {[%clk 0:00:08.1]} 23. Bb5 {[%clk 0:00:04.3]}
23... Ne4 {[%clk 0:00:07.5]} 24. Ree2 {[%clk 0:00:04.3]} 24... Bg7 {[%clk
0:00:07.5]} 25. Kb3 {[%clk 0:00:03.2]} 25... Rfc8 {[%clk 0:00:07.2]} 26. Kxb4
{[%clk 0:00:03.4]} 26... Kg8 {[%clk 0:00:04.4]} 27. c4 {[%clk 0:00:03.9]} 27...
Nd6 {[%clk 0:00:01.4]} 0-1

[Event "Early-Titled-Tuesday-Blitz-January-16-2024"]
[Site "Chess.com"]
[Date "2024.01.16"]
[Round "2"]
[White "Ginger_GM"]
[Black "inagreV"]
[Result "1-0"]
[WhiteElo "2676"]
[BlackElo "2390"]
[TimeControl "180+1"]
[EndTime "8:18:18 PST"]
[Termination "Ginger_GM won on time"]

1. d4 {[%clk 0:03:00.9]} 1... Nf6 {[%clk 0:02:57.5]} 2. Nc3 {[%clk 0:02:48.3]}
2... c5 {[%clk 0:02:56.4]} 3. dxc5 {[%clk 0:02:47.7]} 3... e6 {[%clk 0:02:56.3]}
4. e4 {[%clk 0:02:45.4]} 4... Nc6 {[%clk 0:02:50.3]} 5. Nf3 {[%clk 0:02:18.5]}
5... Bxc5 {[%clk 0:02:48.8]} 6. Bd3 {[%clk 0:02:18.2]} 6... Ng4 {[%clk
0:02:47.2]} 7. O-O {[%clk 0:02:17.3]} 7... Qc7 {[%clk 0:02:46.3]} 8. g3 {[%clk
0:02:05.8]} 8... a6 {[%clk 0:02:27.3]} 9. Bf4 {[%clk 0:01:49.3]} 9... d6 {[%clk
0:02:26.4]} 10. h3 {[%clk 0:01:33.5]} 10... Nge5 {[%clk 0:01:15.4]} 11. Nxe5
{[%clk 0:01:32.8]} 11... dxe5 {[%clk 0:01:15.1]} 12. Bd2 {[%clk 0:01:30]} 12...
b5 {[%clk 0:01:14.5]} 13. Qg4 {[%clk 0:01:28.3]} 13... g6 {[%clk 0:01:11.5]} 14.
Bh6 {[%clk 0:01:24.8]} 14... f6 {[%clk 0:01:07.3]} 15. a4 {[%clk 0:01:21.9]}
15... b4 {[%clk 0:01:05.8]} 16. Ne2 {[%clk 0:01:19.1]} 16... Kf7 {[%clk
0:00:59.6]} 17. h4 {[%clk 0:01:10.7]} 17... Rg8 {[%clk 0:00:41.8]} 18. Nc1
{[%clk 0:01:08.3]} 18... Nd4 {[%clk 0:00:39.5]} 19. Nb3 {[%clk 0:01:06.5]} 19...
f5 {[%clk 0:00:36.2]} 20. Qd1 {[%clk 0:00:58]} 20... Bb7 {[%clk 0:00:25.2]} 21.
Nxd4 {[%clk 0:00:50.7]} 21... Bxd4 {[%clk 0:00:22.4]} 22. Qe2 {[%clk 0:00:50.8]}
22... Rad8 {[%clk 0:00:19.8]} 23. Rab1 {[%clk 0:00:48.7]} 23... Rd7 {[%clk
0:00:19.4]} 24. Kh2 {[%clk 0:00:46.4]} 24... Rc8 {[%clk 0:00:16.9]} 25. f4
{[%clk 0:00:45.9]} 25... exf4 {[%clk 0:00:15.8]} 26. Bxf4 {[%clk 0:00:45.9]}
26... Qc6 {[%clk 0:00:15.4]} 27. Be3 {[%clk 0:00:41.1]} 27... Bxe3 {[%clk
0:00:15.2]} 28. Qxe3 {[%clk 0:00:41.5]} 28... Kg8 {[%clk 0:00:11.4]} 29. h5
{[%clk 0:00:40.8]} 29... g5 {[%clk 0:00:09.3]} 30. Qxg5+ {[%clk 0:00:38.6]}
30... Rg7 {[%clk 0:00:09.9]} 31. Qf4 {[%clk 0:00:38]} 31... Rd8 {[%clk 0:00:07]}
32. h6 {[%clk 0:00:34.9]} 32... Rxd3 {[%clk 0:00:06.6]} 33. cxd3 {[%clk
0:00:32.3]} 33... Qc2+ {[%clk 0:00:06.3]} 34. Kh3 {[%clk 0:00:31.5]} 34... Rg6
{[%clk 0:00:05.9]} 35. Rbc1 {[%clk 0:00:21.8]} 35... Qe2 {[%clk 0:00:03.7]} 36.
Rc7 {[%clk 0:00:19.8]} 1-0

[Event "Early-Titled-Tuesday-Blitz-January-16-2024"]
[Site "Chess.com"]
[Date "2024.01.16"]
[Round "2"]
[White "Polish_fighter3000"]
[Black "Yeritsyaan"]
[Result "1-0"]
[WhiteElo "3070"]
[BlackElo "2657"]
[TimeControl "180+1"]
[EndTime "8:18:20 PST"]
[Termination "Polish_fighter3000 won on time"]

1. e4 {[%clk 0:03:00.9]} 1... c5 {[%clk 0:02:58.8]} 2. Nf3 {[%clk 0:03:01.5]}
2... Nc6 {[%clk 0:02:59.2]} 3. Nc3 {[%clk 0:03:00.5]} 3... e5 {[%clk 0:02:58.4]}
4. Bc4 {[%clk 0:03:00.4]} 4... Be7 {[%clk 0:02:58.1]} 5. d3 {[%clk 0:03:00.1]}
5... d6 {[%clk 0:02:57.6]} 6. h4 {[%clk 0:02:54.9]} 6... Nf6 {[%clk 0:02:53.9]}
7. Ng5 {[%clk 0:02:52.4]} 7... O-O {[%clk 0:02:52.5]} 8. Nd5 {[%clk 0:02:51.2]}
8... h6 {[%clk 0:02:33.3]} 9. Nxf6+ {[%clk 0:02:43]} 9... Bxf6 {[%clk
0:02:32.7]} 10. Qh5 {[%clk 0:02:43.7]} 10... Qe7 {[%clk 0:02:17.2]} 11. Qg6
{[%clk 0:02:38.2]} 11... Bxg5 {[%clk 0:02:06.1]} 12. hxg5 {[%clk 0:02:39.1]}
12... Be6 {[%clk 0:01:56.1]} 13. Bxe6 {[%clk 0:02:04.5]} 13... Qxe6 {[%clk
0:01:44.3]} 14. Qxe6 {[%clk 0:02:03.6]} 14... fxe6 {[%clk 0:01:45.2]} 15. gxh6
{[%clk 0:02:04.1]} 15... Nd4 {[%clk 0:01:45.7]} 16. hxg7 {[%clk 0:01:58.9]}
16... Nxc2+ {[%clk 0:01:27.7]} 17. Ke2 {[%clk 0:01:54.7]} 17... Rfe8 {[%clk
0:00:55.8]} 18. Rb1 {[%clk 0:01:17.9]} 18... Kxg7 {[%clk 0:00:55.2]} 19. Be3
{[%clk 0:01:13.9]} 19... Rh8 {[%clk 0:00:52]} 20. Kd2 {[%clk 0:00:42.8]} 20...
Nd4 {[%clk 0:00:47.6]} 21. Rxh8 {[%clk 0:00:38.3]} 21... Rxh8 {[%clk 0:00:46.5]}
22. b4 {[%clk 0:00:39.2]} 22... b6 {[%clk 0:00:39]} 23. bxc5 {[%clk 0:00:38.8]}
23... dxc5 {[%clk 0:00:39.9]} 24. a4 {[%clk 0:00:39.1]} 24... Nc6 {[%clk
0:00:34.6]} 25. Kc3 {[%clk 0:00:33.3]} 25... Rd8 {[%clk 0:00:28.8]} 26. Rb2
{[%clk 0:00:21.6]} 26... Nb4 {[%clk 0:00:27.5]} 27. Rd2 {[%clk 0:00:22.2]} 27...
Kf6 {[%clk 0:00:25.3]} 28. Kc4 {[%clk 0:00:22.3]} 28... a6 {[%clk 0:00:18]} 29.
a5 {[%clk 0:00:17.1]} 29... b5+ {[%clk 0:00:17.5]} 30. Kxc5 {[%clk 0:00:17.5]}
30... Nxd3+ {[%clk 0:00:15.7]} 31. Kb6 {[%clk 0:00:18.1]} 31... Rd6+ {[%clk
0:00:15.2]} 32. Kc7 {[%clk 0:00:18.3]} 32... Ke7 {[%clk 0:00:01.2]} 33. Bg5+
{[%clk 0:00:17.8]} 1-0

[Event "Early-Titled-Tuesday-Blitz-January-16-2024"]
[Site "Chess.com"]
[Date "2024.01.16"]
[Round "2"]
[White "garfield_pg"]
[Black "Zakaryan_David"]
[Result "1-0"]
[WhiteElo "2409"]
[BlackElo "2670"]
[TimeControl "180+1"]
[EndTime "8:18:21 PST"]
[Termination "garfield_pg won on time"]

1. d4 {[%clk 0:03:00.9]} 1... Nf6 {[%clk 0:02:54.1]} 2. Bf4 {[%clk 0:03:01]}
2... d5 {[%clk 0:02:53.2]} 3. e3 {[%clk 0:03:00.8]} 3... c5 {[%clk 0:02:46.4]}
4. Nf3 {[%clk 0:02:58.6]} 4... Nc6 {[%clk 0:02:38.6]} 5. Nbd2 {[%clk 0:02:57.6]}
5... cxd4 {[%clk 0:02:38.8]} 6. exd4 {[%clk 0:02:57.3]} 6... Bf5 {[%clk
0:02:39.5]} 7. c3 {[%clk 0:02:56.9]} 7... e6 {[%clk 0:02:39.7]} 8. Qb3 {[%clk
0:02:56.6]} 8... Bd6 {[%clk 0:02:39.7]} 9. Qxb7 {[%clk 0:02:36.6]} 9... Bxf4
{[%clk 0:02:32.2]} 10. Qxc6+ {[%clk 0:02:36.2]} 10... Kf8 {[%clk 0:02:32.5]} 11.
Ne5 {[%clk 0:02:25.9]} 11... Rb8 {[%clk 0:02:17.4]} 12. Nb3 {[%clk 0:01:56.3]}
12... g5 {[%clk 0:02:12.3]} 13. Qc5+ {[%clk 0:01:27.9]} 13... Kg7 {[%clk
0:02:08.4]} 14. Qxa7 {[%clk 0:01:08.3]} 14... Rf8 {[%clk 0:01:45]} 15. Nc6
{[%clk 0:00:40.8]} 15... Ra8 {[%clk 0:01:38.9]} 16. Nxd8 {[%clk 0:00:40.8]}
16... Rxa7 {[%clk 0:01:38.8]} 17. Nc6 {[%clk 0:00:41.5]} 17... Rb7 {[%clk
0:01:15.3]} 18. Nb4 {[%clk 0:00:34.6]} 18... Bd6 {[%clk 0:00:41.2]} 19. Nc5
{[%clk 0:00:26.2]} 19... Rc7 {[%clk 0:00:39.7]} 20. Nbd3 {[%clk 0:00:17.7]}
20... Ne4 {[%clk 0:00:31.4]} 21. Nxe4 {[%clk 0:00:12.8]} 21... dxe4 {[%clk
0:00:23.9]} 22. Ne5 {[%clk 0:00:03.7]} 22... Rb8 {[%clk 0:00:23.5]} 23. Nc4
{[%clk 0:00:01.8]} 23... Be7 {[%clk 0:00:09.1]} 24. b3 {[%clk 0:00:02.4]} 24...
Ra7 {[%clk 0:00:07.4]} 25. Be2 {[%clk 0:00:01.9]} 25... Rxb3 {[%clk 0:00:07.3]}
26. axb3 {[%clk 0:00:01.3]} 26... Rxa1+ {[%clk 0:00:06.9]} 27. Bd1 {[%clk
0:00:02.2]} 1-0

[Event "Early-Titled-Tuesday-Blitz-January-16-2024"]
[Site "Chess.com"]
[Date "2024.01.16"]
[Round "2"]
[White "Let_it_be_1"]
[Black "Zhigalko_Sergei"]
[Result "0-1"]
[WhiteElo "2611"]
[BlackElo "2951"]
[TimeControl "180+1"]
[EndTime "8:18:22 PST"]
[Termination "Zhigalko_Sergei won by resignation"]

1. e4 {[%clk 0:03:00.9]} 1... c5 {[%clk 0:02:59.9]} 2. Nf3 {[%clk 0:03:00.8]}
2... Nc6 {[%clk 0:03:00.6]} 3. d4 {[%clk 0:03:01.1]} 3... cxd4 {[%clk
0:03:01.5]} 4. Nxd4 {[%clk 0:03:01.5]} 4... Nf6 {[%clk 0:03:02.2]} 5. Nc3 {[%clk
0:03:01.5]} 5... e5 {[%clk 0:03:02.4]} 6. Ndb5 {[%clk 0:03:01.6]} 6... d6 {[%clk
0:03:02.9]} 7. Bg5 {[%clk 0:03:01.7]} 7... a6 {[%clk 0:03:03.3]} 8. Na3 {[%clk
0:03:00.9]} 8... b5 {[%clk 0:03:03.7]} 9. Nd5 {[%clk 0:03:01.3]} 9... Be7 {[%clk
0:03:03.8]} 10. Bxf6 {[%clk 0:03:01.7]} 10... Bxf6 {[%clk 0:03:04.3]} 11. c3
{[%clk 0:03:02.5]} 11... Bg5 {[%clk 0:03:04.3]} 12. Nc2 {[%clk 0:03:02.5]} 12...
Ne7 {[%clk 0:03:04.7]} 13. Nxe7 {[%clk 0:02:54.5]} 13... Qxe7 {[%clk 0:03:04.6]}
14. Bd3 {[%clk 0:02:46.5]} 14... O-O {[%clk 0:03:02.6]} 15. O-O {[%clk
0:02:45.7]} 15... Rb8 {[%clk 0:02:59]} 16. Nb4 {[%clk 0:02:39.5]} 16... Bb7
{[%clk 0:02:57.5]} 17. a4 {[%clk 0:02:39.2]} 17... a5 {[%clk 0:02:57.8]} 18. Nd5
{[%clk 0:02:34.4]} 18... Bxd5 {[%clk 0:02:57.6]} 19. exd5 {[%clk 0:02:34.3]}
19... b4 {[%clk 0:02:49.4]} 20. Bb5 {[%clk 0:02:10.5]} 20... bxc3 {[%clk
0:02:39.3]} 21. bxc3 {[%clk 0:02:10.1]} 21... f5 {[%clk 0:02:29.1]} 22. Rb1
{[%clk 0:02:06]} 22... e4 {[%clk 0:02:28.2]} 23. Bc6 {[%clk 0:01:51.9]} 23...
Qe5 {[%clk 0:02:04.8]} 24. Qc2 {[%clk 0:01:37.9]} 24... f4 {[%clk 0:01:53.5]}
25. Rfe1 {[%clk 0:01:12.2]} 25... Rxb1 {[%clk 0:01:47.3]} 26. Qxb1 {[%clk
0:01:11.2]} 26... e3 {[%clk 0:01:47.6]} 27. fxe3 {[%clk 0:00:53.7]} 27... fxe3
{[%clk 0:01:47.4]} 28. Qd3 {[%clk 0:00:53]} 28... Bf4 {[%clk 0:01:20.2]} 29. Kh1
{[%clk 0:00:51.5]} 29... Qh5 {[%clk 0:01:08.4]} 30. h3 {[%clk 0:00:50.5]} 30...
Qg5 {[%clk 0:00:46.5]} 31. g4 {[%clk 0:00:35.6]} 31... Qh4 {[%clk 0:00:22.9]}
32. Rxe3 {[%clk 0:00:34.5]} 32... Bxe3 {[%clk 0:00:23.8]} 33. Qxe3 {[%clk
0:00:33.8]} 33... Qf2 {[%clk 0:00:24.4]} 34. Qxf2 {[%clk 0:00:27.4]} 34... Rxf2
{[%clk 0:00:23.4]} 35. c4 {[%clk 0:00:27.9]} 35... Rc2 {[%clk 0:00:21.4]} 36.
Bb5 {[%clk 0:00:26.8]} 36... g5 {[%clk 0:00:19.5]} 37. Kg1 {[%clk 0:00:26.6]}
37... Kg7 {[%clk 0:00:19.1]} 38. Kf1 {[%clk 0:00:26.7]} 38... Kf6 {[%clk
0:00:19.1]} 39. Ke1 {[%clk 0:00:26.5]} 39... Ke5 {[%clk 0:00:19]} 40. Kd1 {[%clk
0:00:26.3]} 40... Rh2 {[%clk 0:00:19.1]} 41. Bd7 {[%clk 0:00:23]} 41... Kd4
{[%clk 0:00:17.1]} 0-1

[Event "Early-Titled-Tuesday-Blitz-January-16-2024"]
[Site "Chess.com"]
[Date "2024.01.16"]
[Round "2"]
[White "Rsnr"]
[Black "arenal72"]
[Result "1-0"]
[WhiteElo "2865"]
[BlackElo "2578"]
[TimeControl "180+1"]
[EndTime "8:18:23 PST"]
[Termination "Rsnr won by resignation"]

1. d4 {[%clk 0:03:00.4]} 1... d6 {[%clk 0:02:58.4]} 2. Nf3 {[%clk 0:02:54.6]}
2... g6 {[%clk 0:02:56]} 3. c4 {[%clk 0:02:49.9]} 3... Bg7 {[%clk 0:02:55]} 4.
Nc3 {[%clk 0:02:50.6]} 4... e5 {[%clk 0:02:54.3]} 5. dxe5 {[%clk 0:02:51.5]}
5... dxe5 {[%clk 0:02:55.1]} 6. Qxd8+ {[%clk 0:02:51.7]} 6... Kxd8 {[%clk
0:02:56]} 7. g3 {[%clk 0:02:52.6]} 7... f6 {[%clk 0:02:49.5]} 8. Bg2 {[%clk
0:02:52.5]} 8... c6 {[%clk 0:02:49.3]} 9. O-O {[%clk 0:02:52.5]} 9... Be6 {[%clk
0:02:48.8]} 10. b4 {[%clk 0:02:53.1]} 10... Bxc4 {[%clk 0:02:47.6]} 11. Rd1+
{[%clk 0:02:53.8]} 11... Kc7 {[%clk 0:02:43.7]} 12. Nd2 {[%clk 0:02:54.2]} 12...
Be6 {[%clk 0:02:38.5]} 13. b5 {[%clk 0:02:54.2]} 13... c5 {[%clk 0:02:04]} 14.
Nde4 {[%clk 0:01:12.2]} 14... Bf8 {[%clk 0:01:58.3]} 15. Be3 {[%clk 0:00:28.3]}
15... Nd7 {[%clk 0:01:57.2]} 16. Rac1 {[%clk 0:00:18.5]} 16... Rd8 {[%clk
0:01:55.7]} 17. b6+ {[%clk 0:00:13.8]} 17... axb6 {[%clk 0:01:44.4]} 18. Nb5+
{[%clk 0:00:14.2]} 18... Kb8 {[%clk 0:01:43]} 19. a4 {[%clk 0:00:14.5]} 19...
Ne7 {[%clk 0:01:38.8]} 20. Ned6 {[%clk 0:00:10.6]} 20... Nc6 {[%clk 0:01:35.8]}
21. f4 {[%clk 0:00:03.4]} 21... Bxd6 {[%clk 0:01:22.3]} 22. Rxd6 {[%clk
0:00:04.3]} 22... Bb3 {[%clk 0:01:14.4]} 23. Ra1 {[%clk 0:00:01.4]} 23... exf4
{[%clk 0:01:09.8]} 24. Bxf4 {[%clk 0:00:02.1]} 24... Nde5 {[%clk 0:01:09.8]} 25.
Rxf6 {[%clk 0:00:02.5]} 25... Rhf8 {[%clk 0:01:01.9]} 26. Rxf8 {[%clk
0:00:02.5]} 26... Rxf8 {[%clk 0:01:02.8]} 27. Bxc6 {[%clk 0:00:02.4]} 27... bxc6
{[%clk 0:01:03.4]} 28. Bxe5+ {[%clk 0:00:03.1]} 28... Ka8 {[%clk 0:01:01.2]} 29.
Nc3 {[%clk 0:00:03.9]} 29... Kb7 {[%clk 0:00:58.6]} 30. a5 {[%clk 0:00:03.8]}
30... b5 {[%clk 0:00:58.5]} 31. a6+ {[%clk 0:00:04.5]} 31... Ka7 {[%clk
0:00:58.7]} 32. Bd6 {[%clk 0:00:05.2]} 32... Rf5 {[%clk 0:00:57.6]} 33. e4
{[%clk 0:00:05.8]} 33... Rf3 {[%clk 0:00:57.6]} 34. Bxc5+ {[%clk 0:00:05.9]}
34... Ka8 {[%clk 0:00:46.6]} 35. Rf1 {[%clk 0:00:05.8]} 35... Rxf1+ {[%clk
0:00:42.2]} 36. Kxf1 {[%clk 0:00:06.7]} 36... b4 {[%clk 0:00:42.8]} 37. Bxb4
{[%clk 0:00:05.9]} 37... Bc4+ {[%clk 0:00:43.4]} 38. Kf2 {[%clk 0:00:05.7]}
38... Bxa6 {[%clk 0:00:44.3]} 39. Ke3 {[%clk 0:00:06.4]} 39... Kb7 {[%clk
0:00:44.7]} 40. Kd4 {[%clk 0:00:06.9]} 40... Kc7 {[%clk 0:00:43.2]} 41. Ke5
{[%clk 0:00:07.2]} 41... Kd7 {[%clk 0:00:43.6]} 42. Bc5 {[%clk 0:00:07.2]} 42...
Bd3 {[%clk 0:00:41.8]} 43. Kf6 {[%clk 0:00:07.7]} 1-0

[Event "Early-Titled-Tuesday-Blitz-January-16-2024"]
[Site "Chess.com"]
[Date "2024.01.16"]
[Round "2"]
[White "DrVitman"]
[Black "TimGrutter03"]
[Result "1-0"]
[WhiteElo "2784"]
[BlackElo "2517"]
[TimeControl "180+1"]
[EndTime "8:18:23 PST"]
[Termination "DrVitman won by resignation"]

1. e4 {[%clk 0:02:10.9]} 1... c5 {[%clk 0:02:59.3]} 2. Nc3 {[%clk 0:02:10.2]}
2... e6 {[%clk 0:02:56.5]} 3. Nge2 {[%clk 0:02:06.9]} 3... Nc6 {[%clk
0:02:56.2]} 4. g3 {[%clk 0:02:06.3]} 4... Nf6 {[%clk 0:02:53]} 5. Bg2 {[%clk
0:02:05.8]} 5... Be7 {[%clk 0:02:51.6]} 6. O-O {[%clk 0:02:05.2]} 6... e5 {[%clk
0:02:52]} 7. f4 {[%clk 0:02:03.4]} 7... d6 {[%clk 0:02:52.1]} 8. d3 {[%clk
0:02:02.5]} 8... a6 {[%clk 0:02:47.6]} 9. a4 {[%clk 0:01:59.3]} 9... Rb8 {[%clk
0:02:47.2]} 10. h3 {[%clk 0:01:57.2]} 10... h5 {[%clk 0:02:44.8]} 11. f5 {[%clk
0:01:55.3]} 11... b5 {[%clk 0:02:41.2]} 12. axb5 {[%clk 0:01:56.2]} 12... axb5
{[%clk 0:02:41.8]} 13. Nd5 {[%clk 0:01:40.9]} 13... Nxd5 {[%clk 0:02:34.9]} 14.
exd5 {[%clk 0:01:41.8]} 14... Nd4 {[%clk 0:02:35.6]} 15. Nxd4 {[%clk 0:01:40.3]}
15... cxd4 {[%clk 0:02:36.5]} 16. Bd2 {[%clk 0:01:26.5]} 16... Bg5 {[%clk
0:02:28.9]} 17. Bb4 {[%clk 0:01:15.3]} 17... Be3+ {[%clk 0:02:17.6]} 18. Kh2
{[%clk 0:01:12.6]} 18... Qf6 {[%clk 0:02:14.8]} 19. Qf3 {[%clk 0:01:06.8]} 19...
Kf8 {[%clk 0:01:43.9]} 20. Qe2 {[%clk 0:01:02.6]} 20... Kg8 {[%clk 0:01:40.3]}
21. Be4 {[%clk 0:01:02]} 21... Bg5 {[%clk 0:01:28.3]} 22. c3 {[%clk 0:00:59.4]}
22... dxc3 {[%clk 0:01:22.9]} 23. bxc3 {[%clk 0:01:00.3]} 23... h4 {[%clk
0:01:19.9]} 24. g4 {[%clk 0:00:59.8]} 24... Bf4+ {[%clk 0:01:17.9]} 25. Kg2
{[%clk 0:01:00.2]} 25... Qd8 {[%clk 0:01:07.1]} 26. Qf2 {[%clk 0:00:59.5]} 26...
Bb7 {[%clk 0:00:56.8]} 27. Ra7 {[%clk 0:00:56.9]} 27... Bg3 {[%clk 0:00:50.6]}
28. Qe3 {[%clk 0:00:56.5]} 28... Bf4 {[%clk 0:00:50.4]} 29. Qf2 {[%clk
0:00:53.5]} 29... Bg3 {[%clk 0:00:50.3]} 30. Qd2 {[%clk 0:00:49]} 30... Qb6
{[%clk 0:00:46.7]} 31. Rfa1 {[%clk 0:00:47.8]} 31... Bf4 {[%clk 0:00:45]} 32.
Qf2 {[%clk 0:00:47]} 32... Be3 {[%clk 0:00:44.2]} 33. Qf3 {[%clk 0:00:45.5]}
33... Bc5 {[%clk 0:00:37.5]} 34. Bxc5 {[%clk 0:00:42]} 34... Qxc5 {[%clk
0:00:38.4]} 35. R1a3 {[%clk 0:00:41.3]} 35... f6 {[%clk 0:00:32.3]} 36. Qf2
{[%clk 0:00:40.1]} 36... Qc7 {[%clk 0:00:25.3]} 37. Kf3 {[%clk 0:00:36.4]} 37...
Kf7 {[%clk 0:00:20.8]} 38. Rb3 {[%clk 0:00:34.1]} 38... Ra8 {[%clk 0:00:17.6]}
39. Rxb5 {[%clk 0:00:31.5]} 39... Rxa7 {[%clk 0:00:13.2]} 40. Qxa7 {[%clk
0:00:32.4]} 40... Rb8 {[%clk 0:00:13.3]} 41. c4 {[%clk 0:00:32.2]} 41... Qd7
{[%clk 0:00:04.7]} 42. Qxb8 {[%clk 0:00:30.7]} 1-0

[Event "Early-Titled-Tuesday-Blitz-January-16-2024"]
[Site "Chess.com"]
[Date "2024.01.16"]
[Round "2"]
[White "missponyo10"]
[Black "tusplingher"]
[Result "1-0"]
[WhiteElo "2259"]
[BlackElo "2494"]
[TimeControl "180+1"]
[EndTime "8:18:23 PST"]
[Termination "missponyo10 won by checkmate"]

1. Nf3 {[%clk 0:03:00.9]} 1... Nf6 {[%clk 0:02:58.8]} 2. g3 {[%clk 0:03:00]}
2... e6 {[%clk 0:02:58.3]} 3. Bg2 {[%clk 0:03:00.1]} 3... d5 {[%clk 0:02:58.7]}
4. O-O {[%clk 0:03:00.9]} 4... c5 {[%clk 0:02:59.1]} 5. d4 {[%clk 0:02:59.8]}
5... cxd4 {[%clk 0:02:58.7]} 6. Nxd4 {[%clk 0:02:59.5]} 6... e5 {[%clk
0:02:59.2]} 7. Nb3 {[%clk 0:02:58.8]} 7... Nc6 {[%clk 0:02:58.9]} 8. c4 {[%clk
0:02:58.4]} 8... Be6 {[%clk 0:02:54.4]} 9. Bg5 {[%clk 0:02:52.1]} 9... dxc4
{[%clk 0:02:30.1]} 10. Qxd8+ {[%clk 0:02:50.9]} 10... Rxd8 {[%clk 0:02:29.1]}
11. Bxc6+ {[%clk 0:02:49.9]} 11... bxc6 {[%clk 0:02:29.1]} 12. Na5 {[%clk
0:02:50.5]} 12... Bd5 {[%clk 0:02:25.6]} 13. Rc1 {[%clk 0:02:35.8]} 13... Be7
{[%clk 0:02:01.7]} 14. Nd2 {[%clk 0:02:31]} 14... Nd7 {[%clk 0:01:21.4]} 15.
Bxe7 {[%clk 0:02:29.4]} 15... Kxe7 {[%clk 0:01:22.3]} 16. Ndxc4 {[%clk
0:02:28.1]} 16... Rb8 {[%clk 0:01:16.6]} 17. Ne3 {[%clk 0:02:13.3]} 17... Rb6
{[%clk 0:00:46.9]} 18. b3 {[%clk 0:02:07.1]} 18... Ke6 {[%clk 0:00:27.6]} 19.
Rc2 {[%clk 0:01:55.4]} 19... Rd8 {[%clk 0:00:22.9]} 20. Rac1 {[%clk 0:01:53.5]}
20... Nb8 {[%clk 0:00:20.5]} 21. f3 {[%clk 0:01:29.6]} 21... f5 {[%clk
0:00:20.2]} 22. Kf2 {[%clk 0:01:25]} 22... h5 {[%clk 0:00:15.1]} 23. h4 {[%clk
0:01:15.7]} 23... f4 {[%clk 0:00:12.7]} 24. gxf4 {[%clk 0:01:14.8]} 24... exf4
{[%clk 0:00:13.2]} 25. Nxd5 {[%clk 0:01:09.4]} 25... cxd5 {[%clk 0:00:11.7]} 26.
Rc7 {[%clk 0:01:08.1]} 26... Rd7 {[%clk 0:00:11.2]} 27. Rc8 {[%clk 0:01:03]}
27... Na6 {[%clk 0:00:07.9]} 28. R1c6+ {[%clk 0:00:59.1]} 28... Rd6 {[%clk
0:00:07]} 29. Rxd6+ {[%clk 0:00:54.7]} 29... Rxd6 {[%clk 0:00:04.5]} 30. a3
{[%clk 0:00:49.5]} 30... Kf7 {[%clk 0:00:04.3]} 31. b4 {[%clk 0:00:49.1]} 31...
Re6 {[%clk 0:00:02.2]} 32. Nc6 {[%clk 0:00:46.6]} 32... g6 {[%clk 0:00:02]} 33.
Nd8+ {[%clk 0:00:45.1]} 33... Ke7 {[%clk 0:00:02.7]} 34. Nxe6 {[%clk 0:00:46]}
34... Kxe6 {[%clk 0:00:03.6]} 35. Rc6+ {[%clk 0:00:45.9]} 35... Ke5 {[%clk
0:00:04.2]} 36. Rxa6 {[%clk 0:00:46.8]} 36... Kd4 {[%clk 0:00:04.8]} 37. Rxa7
{[%clk 0:00:47.4]} 37... Ke5 {[%clk 0:00:05.3]} 38. Rg7 {[%clk 0:00:47.9]} 38...
Kf5 {[%clk 0:00:05.6]} 39. Rc7 {[%clk 0:00:46]} 39... Ke6 {[%clk 0:00:06]} 40.
b5 {[%clk 0:00:46.2]} 40... Kd6 {[%clk 0:00:06.2]} 41. Rc1 {[%clk 0:00:46.8]}
41... d4 {[%clk 0:00:06.6]} 42. b6 {[%clk 0:00:47.7]} 42... Kd7 {[%clk
0:00:06.7]} 43. b7 {[%clk 0:00:46.1]} 43... d3 {[%clk 0:00:07.6]} 44. b8=Q
{[%clk 0:00:43.9]} 44... d2 {[%clk 0:00:07.7]} 45. Rc7+ {[%clk 0:00:43.8]} 45...
Ke6 {[%clk 0:00:07.8]} 46. Qb6+ {[%clk 0:00:44.4]} 46... Kf5 {[%clk 0:00:08]}
47. Rc5# {[%clk 0:00:44.7]} 1-0